bitfinex/quotes_SOLUSD_20250717
["timestamp","ask_amount","ask_price","bid_price","bid_amount"]
[1752746106694,0.7,177.83,177.79,5.16902639]
[1752746106844,29.94,177.84,177.79,5.16902639]
[1752746107050,29.94,177.84,177.8,5.16902639]
[1752746107260,5.6235553,177.83,177.8,5.16902639]
[1752746107572,5.62304032,177.84,177.81,5.16902639]
[1752746107779,0.7,177.83,177.8,5.16902639]
[1752746107964,0.7,177.82,177.79,5.16902639]
[1752746108278,0.7,177.81,177.79,5.16902639]
[1752746108492,0.7,177.81,177.78,31.19902639]
[1752746109066,0.7,177.81,177.79,5.16902639]
[1752746109275,5.6236797,177.82,177.79,5.16902639]
[1752746109457,6.3236797,177.82,177.79,5.16902639]
[1752746110167,6.3236797,177.82,177.78,26.03]
[1752746110168,0.7,177.81,177.78,26.03]
[1752746110381,0.7,177.8,177.78,26.03]
[1752746110763,6.3236797,177.82,177.78,31.19902639]
[1752746110960,0.7,177.81,177.78,31.19902639]
[1752746111272,6.32418957,177.81,177.78,31.19902639]
[1752746111456,0.7,177.81,177.78,31.19902639]
[1752746111657,5.62369411,177.82,177.78,31.19902639]
[1752746111859,6.32369411,177.82,177.78,31.19902639]
[1752746112058,0.7,177.81,177.78,31.19902639]
[1752746112674,29.94,177.85,177.8,5.16902639]
[1752746112675,0.7,177.85,177.8,5.16902639]
[1752746112868,0.7,177.85,177.79,0.32]
[1752746113078,0.7,177.85,177.82,5.16902639]
[1752746114393,6.32272195,177.85,177.82,5.16902639]
[1752746115260,0.7,177.84,177.82,5.16902639]
[1752746115580,0.7,177.84,177.81,5.16902639]
[1752746116276,0.7,177.84,177.79,5.94452304]
[1752746116576,0.7,177.84,177.81,5.16902639]
[1752746117365,6.32306941,177.84,177.81,5.16902639]
[1752746117763,6.32306941,177.84,177.78,31.65484107]
[1752746117986,6.32306941,177.84,177.8,5.16902639]
[1752746118491,0.7,177.83,177.8,5.16902639]
[1752746118673,0.7,177.83,177.78,26.03]
[1752746118674,5.16902639,177.82,177.78,26.03]
[1752746118985,0.7,177.81,177.78,26.03]
[1752746119769,0.7,177.81,177.78,31.19902639]
[1752746120073,6.32345418,177.83,177.78,31.19902639]
[1752746120388,0.7,177.82,177.79,5.16902639]
[1752746120578,0.7,177.82,177.78,31.19902639]
[1752746121466,0.7,177.84,177.79,5.16902639]
[1752746121675,0.7,177.83,177.79,5.16902639]
[1752746121904,0.7,177.83,177.78,26.03]
[1752746122267,0.7,177.83,177.79,5.16902639]
[1752746122582,0.7,177.82,177.78,31.19902639]
[1752746122765,0.7,177.82,177.78,0.03]
[1752746122977,5.86902639,177.82,177.78,0.03]
[1752746123291,0.7,177.81,177.78,5.19902639]
[1752746123499,5.62334814,177.83,177.78,5.19902639]
[1752746123791,6.32334814,177.83,177.79,5.16902639]
[1752746123962,0.7,177.83,177.8,5.16902639]
[1752746124161,0.06,177.85,177.81,5.16902639]
[1752746124362,11.49217588,177.84,177.79,5.16902639]
[1752746124567,0.7,177.83,177.79,5.16902639]
[1752746124796,0.7,177.82,177.79,5.16902639]
[1752746125690,6.32371379,177.82,177.79,5.16902639]
[1752746125867,6.32371379,177.82,177.78,0.03]
[1752746126068,6.32371379,177.82,177.79,5.16902639]
[1752746126266,0.7,177.81,177.78,5.19902639]
[1752746126674,0.7,177.8,177.78,0.03]
[1752746127000,5.62371379,177.82,177.78,5.19902639]
[1752746127198,0.7,177.81,177.78,5.19902639]
[1752746127569,0.7,177.81,177.79,5.16902639]
[1752746127895,5.62371379,177.82,177.79,5.16902639]
[1752746128071,6.32371379,177.82,177.79,5.16902639]
[1752746128774,5.62345586,177.83,177.79,5.16902639]
[1752746128976,5.62309331,177.84,177.8,5.48902639]
[1752746129385,6.32309331,177.84,177.8,5.16902639]
[1752746129783,0.7,177.83,177.8,5.16902639]
[1752746130774,6.32336858,177.83,177.8,5.16902639]
[1752746130976,5.62313883,177.84,177.8,5.16902639]
[1752746131175,6.32313883,177.84,177.8,5.16902639]
[1752746131384,0.72,177.83,177.8,5.16902639]
[1752746131579,0.72,177.83,177.79,5.16902639]
[1752746131981,0.72,177.83,177.78,5.97482182]
[1752746132189,0.72,177.83,177.8,5.16902639]
[1752746132490,6.34339422,177.83,177.8,5.16902639]
[1752746133296,5.62339422,177.83,177.8,5.16902639]
[1752746133490,0.72,177.82,177.8,5.16902639]
[1752746134096,0.72,177.82,177.79,5.16902639]
[1752746134480,6.34395399,177.82,177.79,5.16902639]
[1752746134694,6.34395399,177.82,177.78,5.19902639]
[1752746134896,0.72,177.81,177.78,5.19902639]
[1752746135398,6.34345234,177.83,177.79,5.16902639]
[1752746135788,0.72,177.82,177.79,5.16902639]
[1752746136290,5.62345234,177.83,177.79,5.48902639]
[1752746136492,0.72,177.83,177.8,5.16902639]
[1752746136697,5.62303193,177.84,177.8,5.16902639]
[1752746136897,6.34303193,177.84,177.8,5.16902639]
[1752746137287,5.62303193,177.84,177.8,5.16902639]
[1752746137491,0.72,177.83,177.8,5.16902639]
[1752746138082,5.62303193,177.84,177.78,0.03]
[1752746138403,5.88902639,177.83,177.78,0.03]
[1752746138709,10.79269076,177.82,177.78,0.03]
[1752746138914,11.51269076,177.82,177.78,0.03]
[1752746139083,0.72,177.81,177.78,0.03]
[1752746139508,0.72,177.8,177.78,0.03]
[1752746139988,5.6246133,177.79,177.78,0.03]
[1752746141523,5.62405651,177.81,177.78,0.03]
[1752746141816,5.62405651,177.81,177.78,5.19902639]
[1752746142010,6.34405651,177.81,177.78,5.19902639]
[1752746142213,0.72,177.8,177.78,0.03]
[1752746142389,0.72,177.8,177.78,5.19902639]
[1752746142711,5.62405651,177.81,177.78,5.19902639]
[1752746142712,0.72,177.79,177.78,0.03]
[1752746144204,6.3446133,177.79,177.78,0.03]
[1752746144379,11.51363969,177.79,177.78,0.03]
[1752746145186,6.3446133,177.79,177.78,0.03]
[1752746146292,0.72,177.79,177.78,0.03]
[1752746146584,14.05787862,177.84,177.78,5.19902639]
[1752746146585,6.34408626,177.81,177.78,5.19902639]
[1752746146800,0.72,177.81,177.78,5.19902639]
[1752746147201,35.46376863,177.82,177.79,5.16902639]
[1752746147202,29.84,177.82,177.79,5.16902639]
[1752746147411,30.56,177.82,177.79,5.16902639]
[1752746148106,6.34308625,177.84,177.8,5.16902639]
[1752746148309,5.62308625,177.84,177.81,5.16902639]
[1752746148492,0.72,177.83,177.81,5.16902639]
[1752746149329,0.72,177.83,177.8,5.16902639]
[1752746150633,0.72,177.83,177.81,5.16902639]
[1752746150785,0.78,177.85,177.82,5.16902639]
[1752746151144,0.06,177.85,177.81,0.32]
[1752746151428,0.06,177.85,177.84,5.16902639]
[1752746152094,0.06,177.85,177.83,5.16902639]
[1752746152297,0.78,177.85,177.83,5.16902639]
[1752746153197,0.72,177.84,177.82,5.16902639]
[1752746153725,0.72,177.83,177.81,5.16902639]
[1752746154424,0.72,177.83,177.8,5.16902639]
[1752746154627,6.34338621,177.83,177.8,5.16902639]
[1752746155127,0.72,177.82,177.8,5.16902639]
[1752746156429,0.72,177.81,177.79,5.16902639]
[1752746156615,5.62406553,177.81,177.78,31.19902639]
[1752746156815,0.72,177.8,177.78,31.19902639]
[1752746157804,0.72,177.79,177.78,31.19902639]
[1752746157992,0.72,177.79,177.78,0.03]
[1752746159016,6.3446133,177.79,177.78,0.03]
[1752746159915,0.72,177.79,177.78,0.03]
[1752746160094,1.5325,177.84,177.78,5.51902639]
[1752746160095,0.72,177.84,177.78,5.51902639]
[1752746160413,0.06,177.85,177.83,5.16902639]
[1752746160615,0.06,177.85,177.84,5.16902639]
[1752746160997,0.06,177.85,177.84,11.11205832]
[1752746161200,0.06,177.85,177.84,40.91205832]
[1752746162711,0.06,177.85,177.84,35.74303193]
[1752746162915,0.06,177.85,177.84,40.91205832]
[1752746163713,0.06,177.85,177.84,49.17675832]
[1752746166330,0.06,177.89,177.87,26.0]
[1752746166627,0.06,177.89,177.88,34.94902639]
[1752746166841,0.06,177.89,177.88,35.26902639]
[1752746167029,0.06,177.89,177.88,123.36902639]
[1752746167622,0.06,177.89,177.88,128.99079387]
[1752746168219,0.06,177.89,177.88,123.82176748]
[1752746168532,0.06,177.89,177.88,128.97079387]
[1752746169044,0.06,177.89,177.88,123.80176748]
[1752746169218,0.06,177.89,177.88,5.94176748]
[1752746169420,0.06,177.89,177.88,40.87079387]
[1752746169834,0.06,177.89,177.88,35.24902639]
[1752746170144,0.06,177.89,177.88,34.92902639]
[1752746170355,0.06,177.89,177.88,5.16902639]
[1752746171846,0.06,177.89,177.88,31.16902639]
[1752746172342,0.76,177.89,177.88,26.0]
[1752746172526,0.76,177.89,177.84,8.2647]
[1752746172527,0.76,177.89,177.86,5.16902639]
[1752746172728,0.06,177.89,177.87,26.0]
[1752746172920,0.7,177.88,177.87,26.0]
[1752746173124,0.06,177.89,177.87,5.48902639]
[1752746173318,0.06,177.89,177.88,5.48902639]
[1752746173753,0.06,177.89,177.88,40.85079387]
[1752746173945,0.06,177.89,177.88,35.68176748]
[1752746174442,0.06,177.89,177.88,34.90902639]
[1752746174645,0.06,177.89,177.88,5.16902639]
[1752746174830,0.06,177.89,177.88,31.16902639]
[1752746175360,0.06,177.89,177.86,29.74]
[1752746175525,0.76,177.89,177.86,29.74]
[1752746175731,0.76,177.89,177.88,5.16902639]
[1752746176131,0.06,177.89,177.88,5.16902639]
[1752746176753,0.06,177.89,177.85,26.0]
[1752746176937,0.7,177.88,177.87,26.0]
[1752746177124,0.7,177.88,177.86,31.16902639]
[1752746178332,0.7,177.88,177.86,26.0]
[1752746178649,0.7,177.88,177.86,31.16902639]
[1752746179366,0.7,177.88,177.87,5.16902639]
[1752746179531,5.68145145,177.89,177.87,5.16902639]
[1752746179735,6.38145145,177.89,177.87,5.16902639]
[1752746180067,0.7,177.88,177.87,5.16902639]
[1752746180364,6.32176748,177.88,177.87,5.16902639]
[1752746181544,0.06,177.89,177.87,5.16902639]
[1752746181750,0.06,177.89,177.88,5.16902639]
[1752746182265,0.06,177.89,177.86,26.0]
[1752746182445,0.76,177.89,177.88,5.16902639]
[1752746182760,6.38145145,177.89,177.87,5.16902639]
[1752746182930,0.7,177.88,177.87,5.16902639]
[1752746183434,5.68153018,177.89,177.87,5.16902639]
[1752746183636,0.7,177.88,177.82,35.68359073]
[1752746183850,5.68153018,177.89,177.82,35.68359073]
[1752746183851,0.06,177.89,177.87,5.16902639]
[1752746184054,0.06,177.89,177.88,5.16902639]
[1752746184652,0.06,177.89,177.88,5.62176748]
[1752746184871,0.06,177.89,177.88,5.16902639]
[1752746185160,0.06,177.89,177.88,5.48902639]
[1752746185670,0.06,177.89,177.88,31.16902639]
[1752746186649,0.06,177.89,177.88,31.62176748]
[1752746186852,0.06,177.89,177.88,36.79079387]
[1752746188142,0.06,177.89,177.88,31.16902639]
[1752746191748,0.06,177.89,177.88,26.0]
[1752746192141,0.06,177.89,177.88,31.16902639]
[1752746192562,0.06,177.89,177.88,37.11079387]
[1752746194861,0.06,177.89,177.88,31.94176748]
[1752746195068,0.06,177.89,177.88,37.11079387]
[1752746196257,0.06,177.89,177.88,36.79079387]
[1752746196845,0.06,177.89,177.88,37.11079387]
[1752746199669,0.06,177.89,177.88,125.21079387]
[1752746200454,0.06,177.89,177.88,124.89079387]
[1752746200944,0.06,177.89,177.88,125.21079387]
[1752746201350,0.06,177.89,177.88,124.44135032]
[1752746202454,0.06,177.89,177.88,119.27232393]
[1752746202658,0.06,177.89,177.88,124.44135032]
[1752746204062,0.06,177.91,177.88,146.39506068]
[1752746204278,0.06,177.91,177.9,27.12273675]
[1752746204702,0.06,177.91,177.9,33.06387221]
[1752746205574,0.06,177.91,177.9,16.27918824]
[1752746207954,0.06,177.93,177.92,26.0]
[1752746208154,0.06,177.93,177.92,77.61371036]
[1752746208378,0.06,177.93,177.92,77.93371036]
[1752746208776,0.06,177.93,177.92,83.55421395]
[1752746210377,5.62310956,178.0,177.97,26.0]
[1752746210378,4.91310956,178.0,177.97,26.0]
[1752746210598,0.1,178.03,178.02,26.0]
[1752746210768,0.1,178.03,177.99,5.61810893]
[1752746210963,0.1,178.03,178.02,5.16902639]
[1752746211581,6.42706423,178.03,177.99,26.0]
[1752746211766,0.1,178.03,178.02,5.16902639]
[1752746212279,0.1,178.07,178.05,26.0]
[1752746212468,0.1,178.07,178.06,34.80902639]
[1752746212859,0.1,178.07,178.06,40.42511085]
[1752746214167,0.1,178.07,178.06,29.64]
[1752746214374,0.81,178.07,178.06,5.16902639]
[1752746215080,0.81,178.07,178.06,31.16902639]
[1752746215979,6.42576907,178.07,178.06,31.16902639]
[1752746216161,0.1,178.07,178.06,31.16902639]
[1752746217398,0.81,178.07,178.06,26.0]
[1752746217600,6.42576907,178.07,178.06,31.16902639]
[1752746218060,6.0689,178.15,178.06,31.16902639]
[1752746218061,1.657,178.19,178.06,22.27371036]
[1752746218264,0.71,178.16,178.13,26.0]
[1752746218481,1.657,178.19,178.1,5.16902639]
[1752746218482,0.71,178.15,178.14,26.0]
[1752746218680,0.71,178.15,178.12,26.0]
[1752746218873,6.32342225,178.15,178.12,26.0]
[1752746219070,6.32342225,178.15,178.06,17.10468397]
[1752746219071,0.71,178.14,178.03,6.8689]
[1752746219382,0.71,178.14,178.09,5.16902639]
[1752746219581,0.71,178.14,178.1,5.16902639]
[1752746219789,5.87902639,178.14,178.09,5.16902639]
[1752746219970,0.71,178.13,178.1,5.16902639]
[1752746220370,1.657,178.19,178.1,0.32]
[1752746220594,1.657,178.19,178.15,5.16902639]
[1752746220899,0.71,178.18,178.16,5.16902639]
[1752746221064,0.71,178.18,178.17,5.16902639]
[1752746222470,0.71,178.18,178.13,26.0]
[1752746222683,0.71,178.18,178.13,31.16902639]
[1752746222684,5.87902639,178.18,178.13,31.16902639]
[1752746222986,5.61293219,178.16,178.13,31.16902639]
[1752746223194,0.66,178.15,178.13,31.16902639]
[1752746223381,0.66,178.14,178.12,5.16902639]
[1752746223576,0.66,178.14,178.05,21.07785888]
[1752746223577,0.66,178.14,178.1,5.16902639]
[1752746224094,5.82902639,178.14,178.09,5.16902639]
[1752746224395,0.66,178.13,178.06,29.6]
[1752746224697,5.16902639,178.09,178.04,5.16902639]
[1752746224994,5.16902639,178.06,177.94,18.89853006]
[1752746225294,5.16902639,178.03,177.97,3.63]
[1752746225472,5.16902639,178.01,177.97,3.63]
[1752746225675,6.2937,178.05,177.97,3.63]
[1752746225676,5.82902639,178.0,177.97,3.63]
[1752746225994,0.66,177.99,177.94,31.16902639]
[1752746226169,0.66,177.99,177.95,5.16902639]
[1752746226374,0.66,178.01,177.97,5.16902639]
[1752746226677,0.66,178.01,177.98,5.16902639]
[1752746226872,0.66,178.0,177.97,5.16902639]
[1752746227075,5.61734636,178.02,177.98,8.26146713]
[1752746227274,5.61639988,178.05,178.0,8.26146713]
[1752746227493,0.66,178.02,178.0,8.26146713]
[1752746227790,5.61639988,178.05,177.97,8.26146713]
[1752746227791,0.66,178.01,177.97,8.26146713]
[1752746227976,0.66,178.01,177.96,8.26146713]
[1752746228177,8.92146713,178.01,177.96,8.26146713]
[1752746228377,0.66,178.0,177.95,8.26146713]
[1752746228591,0.66,178.0,177.91,29.6]
[1752746228889,8.92146713,178.0,177.94,8.26146713]
[1752746229198,6.27829316,177.99,177.94,34.26146713]
[1752746229365,5.61829316,177.99,177.94,34.26146713]
[1752746229684,0.66,177.98,177.94,34.26146713]
[1752746229886,0.66,177.97,177.94,34.26146713]
[1752746230095,0.66,177.96,177.93,8.26146713]
[1752746230264,13.87976029,177.99,177.93,8.26146713]
[1752746230470,0.66,177.95,177.92,8.26146713]
[1752746230664,0.66,177.95,177.91,34.26146713]
[1752746231076,0.66,177.94,177.91,34.26146713]
[1752746231394,0.66,177.94,177.92,26.0]
[1752746231693,0.66,177.94,177.92,34.26146713]
[1752746231896,5.61924027,177.96,177.92,34.26146713]
[1752746232075,0.66,177.95,177.93,8.26146713]
[1752746233683,0.06,178.0,177.93,8.26146713]
[1752746233902,0.66,177.99,177.97,8.26146713]
[1752746234078,0.66,177.98,177.96,8.26146713]
[1752746234274,0.66,177.98,177.92,31.94050359]
[1752746234492,0.66,177.98,177.96,8.26146713]
[1752746234886,0.66,177.97,177.94,8.26146713]
[1752746235084,0.66,177.97,177.92,34.26146713]
[1752746235290,5.61924027,177.96,177.92,34.26146713]
[1752746235508,0.66,177.95,177.91,34.29146713]
[1752746235716,0.66,177.94,177.91,34.29146713]
[1752746235909,0.66,177.93,177.91,34.29146713]
[1752746236585,0.66,177.92,177.91,0.03]
[1752746237508,28.59322971,177.92,177.85,0.03]
[1752746237685,0.66,177.91,177.85,0.03]
[1752746237889,8.92146713,177.91,177.85,8.29146713]
[1752746238217,8.92146713,177.91,177.85,0.03]
[1752746238218,0.66,177.9,177.85,0.03]
[1752746238390,8.92146713,177.9,177.85,0.03]
[1752746238705,0.66,177.89,177.85,0.03]
[1752746239215,0.66,177.89,177.86,8.26146713]
[1752746239417,5.62153689,177.89,177.85,26.03]
[1752746239591,0.66,177.88,177.85,0.03]
[1752746239794,0.66,177.88,177.83,8.26146713]
[1752746239998,8.92146713,177.88,177.82,8.26146713]
[1752746240308,8.26146713,177.85,177.79,8.26146713]
[1752746240619,8.26146713,177.84,177.78,26.03]
[1752746240800,0.66,177.83,177.78,34.29146713]
[1752746240987,0.66,177.83,177.78,8.29146713]
[1752746241190,0.66,177.82,177.78,34.29146713]
[1752746241490,0.66,177.81,177.78,8.29146713]
[1752746241711,0.66,177.8,177.78,0.03]
[1752746242224,8.26146713,177.83,177.78,0.03]
[1752746242225,0.66,177.83,177.79,8.26146713]
[1752746242402,6.28271577,177.85,177.82,8.26146713]
[1752746242601,0.66,177.84,177.81,8.26146713]
[1752746243322,5.62271577,177.85,177.81,8.26146713]
[1752746243323,0.66,177.83,177.81,8.26146713]
[1752746243618,0.66,177.82,177.81,8.26146713]
[1752746243923,0.66,177.82,177.8,34.26146713]
[1752746244095,0.66,177.82,177.81,8.26146713]
[1752746244299,0.66,177.81,177.78,0.03]
[1752746244498,13.88464681,177.84,177.78,8.29146713]
[1752746244720,0.66,177.8,177.78,8.29146713]
[1752746244915,0.66,177.8,177.78,26.03]
[1752746245227,0.66,177.79,177.78,26.03]
[1752746245403,8.26146713,177.83,177.78,34.29146713]
[1752746245404,0.66,177.83,177.78,34.29146713]
[1752746245605,0.66,177.82,177.79,8.26146713]
[1752746245805,0.66,177.82,177.8,8.26146713]
[1752746246005,5.6234212,177.83,177.78,26.03]
[1752746246206,0.66,177.81,177.78,34.29146713]
[1752746246533,0.66,177.8,177.78,34.29146713]
[1752746246824,5.6234212,177.83,177.78,0.03]
[1752746246825,8.92146713,177.79,177.78,0.03]
[1752746247011,0.66,177.79,177.78,8.29146713]
[1752746247321,0.66,177.81,177.78,8.29146713]
[1752746247526,30.26,177.84,177.8,8.26146713]
[1752746247831,0.66,177.83,177.81,8.26146713]
[1752746248009,0.66,177.82,177.81,8.26146713]
[1752746248418,38.52146713,177.82,177.78,0.03]
[1752746248616,8.26146713,177.8,177.78,0.03]
[1752746249122,0.66,177.79,177.78,0.03]
[1752746249521,6.2846133,177.79,177.78,0.03]
[1752746249820,35.8846133,177.79,177.78,0.03]
[1752746250014,0.66,177.79,177.78,0.03]
[1752746250210,0.66,177.79,177.78,8.29146713]
[1752746250521,0.66,177.81,177.78,8.29146713]
[1752746250831,0.66,177.81,177.79,8.26146713]
[1752746251125,0.66,177.83,177.8,8.26146713]
[1752746251327,0.66,177.83,177.78,0.03]
[1752746251628,0.66,177.83,177.81,8.26146713]
[1752746251847,0.7,177.82,177.8,8.26146713]
[1752746252234,0.7,177.81,177.78,26.03]
[1752746252410,0.7,177.81,177.78,0.03]
[1752746252829,8.96146713,177.81,177.78,0.03]
[1752746253034,29.6,177.8,177.78,0.03]
[1752746253323,30.3,177.8,177.78,0.03]
[1752746253531,0.7,177.79,177.78,0.03]
[1752746253830,6.3246133,177.79,177.78,0.03]
[1752746254043,14.05897911,177.83,177.78,8.29146713]
[1752746254044,0.7,177.83,177.78,8.29146713]
[1752746254215,29.6,177.83,177.8,8.26146713]
[1752746254531,0.7,177.82,177.8,8.26146713]
[1752746254933,0.7,177.81,177.8,8.26146713]
[1752746255110,0.7,177.81,177.78,8.29146713]
[1752746255312,0.7,177.81,177.78,0.03]
[1752746255836,5.62429696,177.8,177.78,0.03]
[1752746256127,13.88576409,177.8,177.78,0.03]
[1752746256306,0.7,177.79,177.78,0.03]
[1752746256503,8.96146713,177.79,177.78,0.03]
[1752746256725,0.7,177.79,177.78,0.03]
[1752746257934,6.3246133,177.79,177.78,0.03]
[1752746258734,35.9246133,177.79,177.78,0.03]
[1752746259812,6.3246133,177.79,177.78,0.03]
[1752746260021,35.9246133,177.79,177.78,0.03]
[1752746260733,44.18608043,177.79,177.78,0.03]
[1752746261933,44.18608043,177.79,177.78,1e-08]
[1752746262134,44.18608043,177.79,177.77,1e-08]
[1752746262135,67.4176644,177.79,177.77,1e-08]
[1752746262338,8.96146713,177.78,177.77,1e-08]
[1752746263335,38.56146713,177.78,177.77,1e-08]
[1752746264144,44.18639681,177.78,177.77,1e-08]
[1752746265341,54.29751365,177.78,177.77,1e-08]
[1752746265641,62.55898078,177.78,177.77,1e-08]
[1752746266836,32.95898078,177.78,177.77,1e-08]
[1752746267138,45.77429681,177.78,177.77,1e-08]
[1752746267817,62.55898078,177.78,177.77,1e-08]
[1752746268017,16.78468397,177.77,177.72,0.03]
[1752746268332,8.26146713,177.73,177.72,0.03]
[1752746268515,29.6,177.73,177.72,0.03]
[1752746268715,16.78468397,177.72,177.7,0.03]
[1752746268934,37.86146713,177.71,177.7,0.03]
[1752746269127,38.56146713,177.71,177.7,0.03]
[1752746269334,44.18861247,177.71,177.7,0.03]
[1752746269643,44.18861247,177.71,177.7,1e-08]
[1752746270530,6.32714534,177.71,177.7,1e-08]
[1752746270733,35.92714534,177.71,177.7,1e-08]
[1752746270918,35.22714534,177.71,177.7,1e-08]
[1752746271520,35.92714534,177.71,177.7,1e-08]
[1752746271727,35.22714534,177.71,177.7,1e-08]
[1752746271938,35.92714534,177.71,177.7,1e-08]
[1752746272438,5.6252461,177.77,177.7,8.64146714]
[1752746272649,29.6,177.76,177.74,8.26146713]
[1752746272821,29.6,177.76,177.73,8.26146713]
[1752746273441,35.2258201,177.76,177.73,8.26146713]
[1752746273750,35.9258201,177.76,177.73,8.26146713]
[1752746274246,35.2258201,177.76,177.71,26.38]
[1752746274424,35.2258201,177.76,177.72,8.26146713]
[1752746275119,35.9258201,177.76,177.72,8.26146713]
[1752746275323,0.7,177.75,177.7,1e-08]
[1752746275618,37.86146713,177.74,177.7,1e-08]
[1752746276144,0.7,177.73,177.7,1e-08]
[1752746276527,29.6,177.72,177.7,1e-08]
[1752746276722,30.3,177.72,177.7,1e-08]
[1752746277338,0.7,177.71,177.7,1e-08]
[1752746277837,6.32714534,177.71,177.7,1e-08]
[1752746278032,5.62714534,177.71,177.7,1e-08]
[1752746279446,6.32714534,177.71,177.7,1e-08]
[1752746280052,14.58861247,177.71,177.7,1e-08]
[1752746280357,14.58861247,177.71,177.68,0.2]
[1752746280358,31.37329644,177.71,177.68,1e-08]
[1752746280655,25.0461511,177.69,177.68,1e-08]
[1752746280839,25.0461511,177.69,177.67,0.2]
[1752746280840,25.0461511,177.69,177.67,1e-08]
[1752746281048,25.0461511,177.69,177.59,8.46146713]
[1752746281049,16.78468397,177.65,177.59,0.2]
[1752746281357,16.78468397,177.59,177.47,8.84146713]
[1752746281570,25.0461511,177.54,177.53,0.22]
[1752746281769,35.23253351,177.54,177.53,0.22]
[1752746282254,8.26146713,177.58,177.53,0.22]
[1752746282457,29.6,177.57,177.53,0.03]
[1752746282648,30.29,177.57,177.53,0.03]
[1752746282848,8.26146713,177.54,177.53,0.03]
[1752746283054,37.86146713,177.54,177.53,0.03]
[1752746283249,55.3361511,177.54,177.53,0.03]
[1752746283851,60.96868461,177.54,177.53,0.03]
[1752746285054,60.96868461,177.54,177.53,1e-08]
[1752746285262,16.78468397,177.53,177.43,0.2]
[1752746285434,8.26146713,177.44,177.43,0.2]
[1752746285633,37.86146713,177.44,177.43,0.2]
[1752746285871,44.18717497,177.44,177.43,0.2]
[1752746286238,52.71039181,177.44,177.43,0.2]
[1752746286442,8.26146713,177.45,177.43,0.2]
[1752746286734,17.47468397,177.47,177.43,0.2]
[1752746286936,29.6,177.46,177.43,0.2]
[1752746287350,30.29,177.46,177.43,0.2]
[1752746287561,0.69,177.45,177.43,0.2]
[1752746287758,29.62,177.44,177.43,0.2]
[1752746288138,35.25570784,177.44,177.43,0.2]
[1752746288747,29.62,177.44,177.43,0.2]
[1752746290360,35.94570784,177.44,177.43,0.2]
[1752746290575,52.73039181,177.44,177.43,0.2]
[1752746290735,60.99185894,177.44,177.43,0.2]
[1752746291457,30.31,177.44,177.43,0.2]
[1752746291663,29.62,177.44,177.43,0.2]
[1752746293059,16.78468397,177.48,177.43,8.46146713]
[1752746293237,29.62,177.47,177.45,8.26146713]
[1752746293439,30.31,177.47,177.44,8.26146713]
[1752746293637,0.69,177.46,177.43,0.2]
[1752746293834,29.62,177.45,177.43,8.46146713]
[1752746294051,29.62,177.45,177.44,8.26146713]
[1752746295764,29.62,177.45,177.43,0.2]
[1752746295963,29.62,177.45,177.43,8.46146713]
[1752746296138,16.78468397,177.53,177.44,8.26146713]
[1752746296335,16.78468397,177.53,177.43,8.46146713]
[1752746296336,16.78468397,177.49,177.43,8.46146713]
[1752746296535,30.31,177.48,177.44,8.26146713]
[1752746296735,0.69,177.47,177.44,8.26146713]
[1752746296956,29.62,177.46,177.43,8.46146713]
[1752746297355,29.62,177.46,177.44,8.29146713]
[1752746297760,29.62,177.46,177.44,0.03]
[1752746297940,29.62,177.46,177.44,8.29146713]
[1752746298141,29.62,177.46,177.44,0.03]
[1752746298450,29.62,177.46,177.44,8.29146713]
[1752746298647,29.62,177.46,177.44,0.03]